bitfinex-derivatives/quotes_BNBF0:USTF0_20250810
["timestamp","ask_amount","ask_price","bid_price","bid_amount"]
[1754850764968,0.21669889,803.8,802.46,2.79576934]
[1754850765272,0.21669889,803.8,802.42,2.79576934]
[1754850765971,0.21669889,803.8,802.41,2.79576934]
[1754850766473,0.21669889,803.8,802.4,2.79576934]
[1754850766873,0.21669889,803.8,802.55,2.79576934]
[1754850767569,0.21669889,803.8,802.53,2.79576934]
[1754850768575,0.21669889,803.8,802.52,2.79576934]
[1754850769471,0.21669889,803.8,802.21,0.21678461]
[1754850769472,0.21669889,803.8,802.69,2.79576934]
[1754850770674,0.21669889,803.8,802.68,2.79576934]
[1754850773177,0.21669889,803.8,802.76,2.79576934]
[1754850775779,0.21669889,803.8,802.45,3.90341846]
[1754850775976,0.21669889,803.8,802.21,0.21678461]
[1754850784086,0.21669889,803.8,802.41,2.79576934]
[1754850784589,0.21669889,803.8,802.42,2.79576934]
[1754850785289,0.21669889,803.8,802.45,2.79576934]
[1754850785688,0.21669889,803.8,802.64,2.79576934]
[1754850787790,0.21669889,803.8,802.65,2.79576934]
[1754850788491,0.21669889,803.8,802.67,2.79576934]
[1754850790492,0.21669889,803.8,802.68,2.79576934]
[1754850790887,0.21669889,803.8,802.66,2.79576934]
[1754850794096,0.21669889,803.8,802.68,2.79576934]
[1754850794692,0.21669889,803.8,802.28,3.90341846]
[1754850794693,0.21669889,803.8,802.89,2.79576934]
[1754850795096,0.21669889,803.8,802.9,2.79576934]
[1754850796093,0.21669889,803.8,802.91,2.79576934]
[1754850796797,0.21669889,803.8,802.92,2.79576934]
[1754850797698,0.21669889,803.8,802.89,2.79576934]
[1754850800795,0.21669889,803.8,802.93,2.79576934]
[1754850801397,0.21669889,803.8,803.03,2.79576934]
[1754850802500,0.21669889,803.8,803.04,2.79576934]
[1754850803104,0.21669889,803.8,802.82,2.79576934]
[1754850804501,0.21669889,803.8,802.83,2.79576934]
[1754850805600,0.21669889,803.8,802.85,2.79576934]
[1754850806803,0.21669889,803.8,802.83,2.79576934]
[1754850807703,0.21669889,803.8,802.85,2.79576934]
[1754850808105,0.21669889,803.8,802.83,2.79576934]
[1754850808904,0.21669889,803.8,802.82,2.79576934]
[1754850809809,0.21669889,803.8,802.83,2.79576934]
[1754850810408,0.21669889,803.8,802.82,2.79576934]
[1754850810909,0.21669889,803.8,802.83,2.79576934]
[1754850811509,0.21669889,803.8,802.82,2.79576934]
[1754850811910,0.21669889,803.8,802.74,2.79576934]
[1754850812605,0.21669889,803.8,802.75,2.79576934]
[1754850813010,0.21669889,803.8,802.84,2.79576934]
[1754850814710,0.21669889,803.8,802.85,2.79576934]
[1754850815707,0.21669889,803.8,802.89,2.79576934]
[1754850816715,0.21669889,803.8,802.92,2.79576934]
[1754850817115,0.21669889,803.8,802.93,2.79576934]
[1754850817814,0.21669889,803.8,802.94,2.79576934]
[1754850818213,0.21669889,803.8,802.66,3.90341846]
[1754850818214,0.21669889,803.8,802.96,2.79576934]
[1754850818818,0.21669889,803.8,802.98,2.79576934]
[1754850819718,0.21669889,803.8,802.81,2.79576934]
[1754850820217,0.21669889,803.8,802.82,2.79576934]
[1754850821317,0.21669889,803.8,802.83,2.79576934]
[1754850822014,0.21669889,803.8,802.86,2.79576934]
[1754850823020,0.21669889,803.8,802.85,2.79576934]
[1754850823916,0.21669889,803.8,802.87,2.79576934]
[1754850824417,0.21669889,803.8,802.88,2.79576934]
[1754850825620,0.21669889,803.8,802.74,2.79576934]
[1754850827418,0.21669889,803.8,802.59,2.79576934]
[1754850827921,0.21669889,803.8,802.56,2.79576934]
[1754850829227,0.21669889,803.8,802.72,2.79576934]
[1754850831725,0.21669889,803.8,802.75,2.79576934]
[1754850835720,0.21669889,803.8,802.88,2.79576934]
[1754850837526,0.21669889,803.8,802.59,3.90341846]
[1754850837723,0.21669889,803.8,802.56,2.79576934]
[1754850838526,0.21669889,803.8,802.55,2.79576934]
[1754850839027,0.21669889,803.8,802.56,2.79576934]
[1754850841625,0.21669889,803.8,802.55,2.79576934]
[1754850842625,0.21669889,803.8,802.56,2.79576934]
[1754850843725,0.21669889,803.8,802.55,2.79576934]
[1754850845230,0.21669889,803.8,802.57,2.79576934]
[1754850845730,0.21669889,803.8,802.59,2.79576934]
[1754850847526,0.21669889,803.8,802.89,2.79576934]
[1754850848327,0.21669889,803.8,802.8,2.79576934]
[1754850849326,0.21669889,803.8,802.89,2.79576934]
[1754850850430,0.21669889,803.8,802.88,2.79576934]
[1754850853027,0.21669889,803.8,802.87,2.79576934]
[1754850853531,0.21669889,803.8,802.79,2.79576934]
[1754850855729,0.21669889,803.8,802.81,2.79576934]
[1754850856634,0.21669889,803.8,802.79,2.79576934]
[1754850857734,0.21669889,803.8,802.48,3.90341846]
[1754850857735,0.21669889,803.8,802.85,2.79576934]
[1754850858836,0.21669889,803.8,802.84,2.79576934]
[1754850861337,0.21669889,803.8,802.85,2.79576934]
[1754850861934,0.21669889,803.8,802.84,2.79576934]
[1754850862437,0.21669889,803.8,802.83,2.79576934]
[1754850862935,0.21669889,803.8,802.73,2.79576934]
[1754850863435,0.21669889,803.8,802.77,2.79576934]
[1754850864641,0.21669889,803.8,802.52,2.79576934]
[1754850865138,0.21669889,803.8,802.53,2.79576934]
[1754850865542,0.21669889,803.8,802.41,2.79576934]
[1754850869241,0.21669889,803.8,802.42,2.79576934]
[1754850871346,0.21669889,803.8,802.43,2.79576934]
[1754850873148,0.21669889,803.8,802.47,2.79576934]
[1754850873550,0.21669889,803.8,802.48,2.79576934]
[1754850874553,0.21669889,803.8,802.8,2.79576934]
[1754850875048,0.21669889,803.8,802.21,0.21678461]
[1754850875049,0.21669889,803.8,802.83,2.79576934]
[1754850875548,0.21669889,803.8,803.01,2.79576934]
[1754850876253,0.21669889,803.8,802.75,3.90341846]
[1754850876451,0.21669889,803.8,802.58,2.79576934]
[1754850877655,0.21669889,803.8,802.55,2.79576934]
[1754850878756,0.21669889,803.8,802.59,2.79576934]
[1754850879755,0.21669889,803.8,802.6,2.79576934]
[1754850881854,0.21669889,803.8,802.58,2.79576934]
[1754850882354,0.21669889,803.8,802.59,2.79576934]
[1754850882857,0.21669889,803.8,802.58,2.79576934]
[1754850884558,0.21669889,803.8,802.59,2.79576934]
[1754850885057,0.21669889,803.8,802.57,2.79576934]
[1754850885558,0.21669889,803.8,802.55,2.79576934]
[1754850885959,0.21669889,803.8,802.8,2.79576934]
[1754850886563,0.21669889,803.8,802.81,2.79576934]
[1754850887260,0.21669889,803.8,802.82,2.79576934]
[1754850888563,0.21669889,803.8,802.83,2.79576934]
[1754850889266,0.21669889,803.8,802.86,2.79576934]
[1754850891671,0.21669889,803.8,802.9,2.79576934]
[1754850892865,0.21669889,803.8,802.92,2.79576934]
[1754850894371,0.21669889,803.8,802.89,2.79576934]
[1754850894874,0.21669889,803.8,802.93,2.79576934]
[1754850895472,0.21669889,803.8,802.86,2.79576934]
[1754850895874,0.21669889,803.8,802.87,2.79576934]
[1754850896975,0.21669889,803.8,802.76,2.79576934]
[1754850897677,0.21669889,803.8,802.6,2.79576934]
[1754850898077,0.21669889,803.8,802.53,2.79576934]
[1754850898977,0.21669889,803.8,802.56,2.79576934]
[1754850904281,0.21669889,803.8,802.57,2.79576934]
[1754850905887,0.21669889,803.8,802.61,2.79576934]
[1754850906885,0.21669889,803.8,802.65,2.79576934]
[1754850907385,0.21669889,803.8,802.78,2.79576934]
[1754850907984,0.21669889,803.8,802.92,2.79576934]
[1754850912590,0.21669889,803.8,802.93,2.79576934]
[1754850913194,0.21669889,803.8,802.67,3.90341846]
[1754850913898,0.21669889,803.8,802.36,2.79576934]
[1754850914695,0.21669889,803.8,802.37,2.79576934]
[1754850915699,0.21669889,803.8,802.34,0.21673668]
[1754850923208,0.21669889,803.8,802.54,2.79576934]
[1754850925608,0.21669889,803.8,802.7,2.79576934]
[1754850926109,0.21669889,803.8,802.72,2.79576934]
[1754850928213,0.21669889,803.8,802.73,2.79576934]
[1754850929515,0.21669889,803.8,802.71,2.79576934]
[1754850930313,0.21669889,803.8,802.72,2.79576934]
[1754850931917,0.21669889,803.8,802.71,2.79576934]
[1754850932417,0.21669889,803.8,802.7,2.79576934]
[1754850933014,0.21669889,803.8,802.82,2.79576934]
[1754850933413,0.21669889,803.8,802.99,2.79576934]
[1754850934118,0.21669889,803.8,802.98,2.79576934]
[1754850934517,0.21669889,803.8,802.99,2.79576934]
[1754850935621,0.21669889,803.8,802.95,2.79576934]
[1754850936820,0.21669889,803.8,802.94,2.79576934]
[1754850937220,0.21669889,803.8,802.75,2.79576934]
[1754850939423,0.21669889,803.8,802.76,2.79576934]
[1754850940326,0.21669889,803.8,802.75,2.79576934]
[1754850941927,0.21669889,803.8,802.76,2.79576934]
[1754850942427,0.21669889,803.8,802.78,2.79576934]
[1754850943532,0.21669889,803.8,802.79,2.79576934]
[1754850945034,0.21669889,803.8,802.82,2.79576934]
[1754850946530,0.21669889,803.8,802.52,3.90341846]
[1754850946531,0.21669889,803.8,802.83,2.79576934]
[1754850947140,0.21669889,803.8,802.97,2.79576934]
[1754850951235,0.21669889,803.8,802.84,2.79576934]
[1754850952837,0.21669889,803.8,802.83,2.79576934]
[1754850953236,0.82464218,803.79,802.83,2.79576934]
[1754850953434,0.82464218,803.78,802.58,2.79576934]
[1754850953637,0.82464218,803.77,802.58,2.79576934]
[1754850953839,0.21669889,803.8,802.65,2.79576934]
[1754850954036,0.82422981,803.79,802.65,2.79576934]
[1754850954234,0.21669889,803.8,802.65,2.79576934]
[1754850954538,0.82394216,803.79,802.64,2.79576934]
[1754850954740,0.21669889,803.8,802.64,2.79576934]
[1754850954936,0.8239364,803.79,802.64,2.79576934]
[1754850955137,0.21669889,803.8,802.64,2.79576934]
[1754850955439,0.82374045,803.79,802.47,2.79576934]
[1754850955641,0.82374045,803.78,802.47,2.79576934]
[1754850955935,0.82374045,803.77,802.47,2.79576934]
[1754850956140,0.82374045,803.76,802.47,2.79576934]
[1754850956338,0.82374045,803.75,802.47,2.79576934]
[1754850956640,0.82374045,803.74,802.39,2.79576934]
[1754850956937,0.82374045,803.73,802.39,2.79576934]
[1754850957138,0.82374045,803.72,802.39,2.79576934]
[1754850957337,0.82374045,803.71,802.39,2.79576934]
[1754850957542,0.82374045,803.7,802.38,2.79576934]
[1754850957742,0.82374045,803.69,802.38,2.79576934]
[1754850957943,0.82374045,803.68,802.38,2.79576934]
[1754850958239,0.82374045,803.67,802.38,2.79576934]
[1754850958438,0.82374045,803.66,802.38,2.79576934]
[1754850958738,0.82332072,803.65,802.42,2.79576934]
[1754850958938,0.21669889,803.8,802.42,2.79576934]
[1754850958939,0.82332072,803.64,802.42,2.79576934]
[1754850959140,0.21669889,803.8,802.4,2.79576934]
[1754850959340,0.82320136,803.79,802.4,2.79576934]
[1754850959541,0.82320136,803.78,802.4,2.79576934]
[1754850959740,0.82320136,803.77,802.4,2.79576934]
[1754850959939,0.82320136,803.76,802.4,2.79576934]
[1754850960142,0.82320136,803.75,802.39,2.79576934]
[1754850960342,0.82320136,803.74,802.39,2.79576934]
[1754850960541,0.82320136,803.73,802.39,2.79576934]
[1754850960740,0.82320136,803.72,802.39,2.79576934]
[1754850960939,0.82320136,803.71,802.39,2.79576934]
[1754850961140,0.82320136,803.7,802.4,2.79576934]
[1754850961339,0.82320136,803.69,802.4,2.79576934]
[1754850961643,0.82320136,803.68,802.4,2.79576934]
[1754850961843,0.82320136,803.67,802.4,2.79576934]
[1754850962139,0.82320136,803.66,802.47,2.79576934]
[1754850962344,0.82320136,803.65,802.47,2.79576934]
[1754850962644,0.21669889,803.8,802.47,2.79576934]
[1754850962845,0.82297486,803.79,802.47,2.79576934]
[1754850963042,0.21679609,803.36,802.47,2.79576934]
[1754850963246,0.5,803.88,802.47,2.79576934]
[1754850963444,0.21678731,803.24,802.47,2.79576934]
[1754850963756,0.5,803.88,802.49,2.79576934]
[1754850963949,0.21677448,803.29,802.49,2.79576934]
[1754850964346,0.5,803.88,802.51,2.79576934]
[1754850964642,0.21677313,803.29,802.51,2.79576934]
[1754850964842,0.5,803.88,802.51,2.79576934]
[1754850965044,0.21676908,803.54,802.51,2.79576934]
[1754850965248,0.21676908,803.54,802.34,0.21673668]
[1754850965747,0.21676908,803.54,802.55,2.79576934]
[1754850966346,0.21676908,803.54,802.59,2.79576934]
[1754850967349,0.21676908,803.54,802.58,2.79576934]
[1754850967845,0.21676908,803.54,802.53,2.79576934]
[1754850969046,0.21676908,803.54,802.74,2.79576934]
[1754850969447,0.21676908,803.54,802.73,2.79576934]
[1754850971549,0.21676908,803.54,802.72,2.79576934]
[1754850975656,0.21676908,803.54,802.68,2.79576934]
[1754850976253,0.21676908,803.54,802.69,2.79576934]
[1754850977453,0.21676908,803.54,802.77,2.79576934]
[1754850977857,0.21676908,803.54,802.88,2.79576934]
[1754850982860,0.21676908,803.54,802.82,2.79576934]
[1754850983862,0.5,803.88,802.82,2.79576934]
[1754850985064,0.5,803.88,802.8,2.79576934]
[1754850985761,0.5,803.88,802.79,2.79576934]
[1754850990266,0.21673466,803.61,802.79,2.79576934]
[1754850992374,0.21673466,803.61,802.78,2.79576934]
[1754850992975,0.21673466,803.61,802.87,2.79576934]
[1754850995375,0.21673466,803.61,802.84,2.79576934]
[1754850998572,0.21673466,803.61,802.85,2.79576934]
[1754851005895,0.21673466,803.61,802.76,2.79576934]
[1754851007385,0.21673466,803.61,802.75,2.79576934]
[1754851008386,0.21673466,803.61,802.49,3.90341846]
[1754851008890,0.21673466,803.61,802.41,0.21673466]
[1754851026716,0.21673466,803.61,802.5,2.79576934]
[1754851028306,0.21673466,803.61,802.49,2.79576934]
[1754851028810,0.21673466,803.61,802.56,2.79576934]
[1754851029309,0.21673466,803.61,802.58,2.79576934]
[1754851029906,0.21673466,803.61,802.59,2.79576934]
[1754851032003,0.21673466,803.61,802.56,2.79576934]
[1754851034109,0.21673466,803.61,802.62,2.79576934]
[1754851034707,0.21673466,803.61,802.63,2.79576934]
[1754851035508,0.21673466,803.61,802.61,2.79576934]
[1754851036715,0.21673466,803.61,802.57,2.79576934]
[1754851038110,0.21673466,803.61,802.62,2.79576934]
[1754851041918,0.21673466,803.61,802.65,2.79576934]
[1754851043015,0.21673466,803.61,802.64,2.79576934]
[1754851043316,0.21673466,803.61,802.51,2.79576934]
[1754851043816,0.21673466,803.61,802.46,2.79576934]
[1754851044818,0.21673466,803.61,802.45,2.79576934]
[1754851045622,0.21673466,803.61,802.43,2.79576934]
[1754851046424,0.21673466,803.61,802.44,2.79576934]
[1754851046923,0.21673466,803.61,802.45,2.79576934]
[1754851047523,0.21673466,803.61,802.44,2.79576934]
[1754851048023,0.21673466,803.61,802.48,2.79576934]
[1754851049727,0.21673466,803.61,802.43,2.79576934]
[1754851051728,0.21673466,803.61,802.44,2.79576934]
[1754851052229,0.21673466,803.61,802.43,2.79576934]
[1754851052725,0.21673466,803.61,802.51,2.79576934]
[1754851053427,0.21673466,803.61,802.57,2.79576934]
[1754851054929,0.21673466,803.61,802.58,2.79576934]
[1754851055526,0.21673466,803.61,802.46,2.79576934]
[1754851057525,0.21673466,803.61,802.48,2.79576934]
[1754851059626,0.21673466,803.61,802.52,2.79576934]
[1754851062126,0.21673466,803.61,802.53,2.79576934]
[1754851064227,0.21673466,803.61,802.3,0.21677718]
[1754851064228,0.21673466,803.61,802.54,2.79576934]
[1754851065436,0.21673466,803.61,802.55,2.79576934]
[1754851065936,0.21673466,803.61,802.67,2.79576934]
[1754851066337,0.21673466,803.61,802.68,2.79576934]
[1754851068435,0.21673466,803.61,802.69,2.79576934]
[1754851069335,0.21673466,803.61,802.7,2.79576934]
[1754851075138,0.21673466,803.61,802.31,2.79576934]
[1754851075635,0.21673466,803.61,802.39,2.79576934]
[1754851076539,0.21673466,803.61,802.38,2.79576934]
[1754851077241,0.21673466,803.61,802.84,2.79576934]
[1754851077741,0.21673466,803.61,802.83,2.79576934]
[1754851078242,0.21673466,803.61,802.79,2.79576934]
[1754851079238,0.21673466,803.61,802.8,2.79576934]
[1754851079742,0.21673466,803.61,802.79,2.79576934]
[1754851080738,0.21673466,803.61,802.8,2.79576934]
[1754851081344,0.21673466,803.61,802.83,2.79576934]
[1754851082342,0.21673466,803.61,802.8,2.79576934]
[1754851083642,0.21673466,803.61,802.91,2.79576934]
[1754851084549,0.21673466,803.61,802.88,2.79576934]
[1754851085444,0.21673466,803.61,802.98,2.79576934]
[1754851085643,0.5,804.06,802.98,2.79576934]
[1754851085949,0.21666651,803.74,802.96,2.79576934]
[1754851086548,0.21666651,803.74,802.93,2.79576934]
[1754851087551,0.21666651,803.74,802.88,2.79576934]
[1754851088552,0.21666651,803.74,802.83,2.79576934]
[1754851089555,0.5,804.39,802.83,2.79576934]
[1754851089851,0.21664088,803.84,802.82,2.79576934]
[1754851090049,0.5,804.39,802.82,2.79576934]
[1754851090257,0.21664223,803.84,802.79,2.79576934]
[1754851090551,0.5,804.39,802.79,2.79576934]
[1754851090749,0.21664426,803.84,802.78,2.79576934]
[1754851090953,0.5,804.39,802.78,2.79576934]
[1754851091151,0.21664493,803.84,802.78,2.79576934]
[1754851091353,0.21664493,803.84,802.75,2.79576934]
[1754851091654,0.5,804.39,802.75,2.79576934]
[1754851091952,0.81907957,804.38,802.74,2.79576934]
[1754851092154,0.81907957,804.37,802.74,2.79576934]
[1754851092356,0.21664628,803.99,802.71,2.79576934]
[1754851093353,0.21664628,803.99,802.69,2.79576934]
[1754851093757,0.21664628,803.99,802.68,2.79576934]
[1754851094360,0.21664628,803.99,802.78,2.79576934]
[1754851094758,0.21664628,803.99,802.77,2.79576934]
[1754851095362,0.21664628,803.99,802.75,2.79576934]
[1754851095861,0.21664628,803.99,802.67,2.79576934]
[1754851096660,0.21664628,803.99,802.64,2.79576934]
[1754851097562,0.21664628,803.99,802.62,2.79576934]
[1754851098463,0.21664628,803.99,802.6,2.79576934]
[1754851099563,0.21664628,803.99,802.34,3.90341846]
[1754851099564,0.21664628,803.99,802.58,2.79576934]
[1754851100664,0.21664628,803.99,802.56,2.79576934]
[1754851101563,0.21664628,803.99,802.55,2.79576934]
[1754851102560,0.21664628,803.99,802.54,2.79576934]
[1754851103065,0.21664628,803.99,802.49,2.79576934]
[1754851103665,0.21664628,803.99,802.48,2.79576934]
[1754851104163,0.21664628,803.99,802.5,2.79576934]
[1754851104762,0.21664628,803.99,802.49,2.79576934]
[1754851105267,0.21664628,803.99,802.41,2.79576934]
[1754851105767,0.21664628,803.99,802.63,2.79576934]
[1754851106368,0.21664628,803.99,802.62,2.79576934]
[1754851108770,0.21664628,803.99,802.63,2.79576934]
[1754851111069,0.21664628,803.99,802.62,2.79576934]
[1754851113169,0.21664628,803.99,802.72,2.79576934]
[1754851115773,0.21664628,803.99,802.71,2.79576934]
[1754851116274,0.21664628,803.99,802.72,2.79576934]
[1754851117775,0.21664628,803.99,802.73,2.79576934]
[1754851118873,0.21664628,803.99,802.74,2.79576934]
[1754851119474,0.21664628,803.99,802.75,2.79576934]
[1754851120578,0.21664628,803.99,802.49,3.90341846]
[1754851121179,0.21664628,803.99,802.3,0.21677718]
[1754851130487,0.21664628,803.99,802.64,2.79576934]
[1754851130986,0.21664628,803.99,802.68,2.79576934]
[1754851131494,0.21664628,803.99,802.74,2.79576934]
[1754851132095,0.21664628,803.99,802.73,2.79576934]
[1754851132591,0.21664628,803.99,802.78,2.79576934]
[1754851132990,0.21664628,803.99,802.75,2.79576934]
[1754851133896,0.21664628,803.99,802.8,2.79576934]
[1754851134695,0.21664628,803.99,802.86,2.79576934]
[1754851135695,0.21664628,803.99,802.99,2.79576934]
[1754851136693,0.21664628,803.99,803.01,2.79576934]
[1754851137794,0.21664628,803.99,803.04,2.79576934]
[1754851138793,0.21664628,803.99,803.06,2.79576934]
[1754851139395,0.21664628,803.99,803.16,2.79576934]
[1754851139797,0.21664628,803.99,803.18,2.79576934]
[1754851140298,0.21664628,803.99,803.24,2.79576934]
[1754851140898,0.21664628,803.99,803.25,2.79576934]
[1754851141496,0.21664628,803.99,803.24,2.79576934]
[1754851141898,0.21664628,803.99,803.39,2.79576934]
[1754851142598,0.21664628,803.99,803.4,2.79576934]
[1754851143601,0.21664628,803.99,803.5,2.79576934]
[1754851143998,0.21664628,803.99,803.47,2.79576934]
[1754851145702,0.21664628,803.99,803.26,2.79576934]
[1754851146806,0.21664628,803.99,803.25,2.79576934]
[1754851149704,0.21664628,803.99,803.26,2.79576934]
[1754851150309,0.21664628,803.99,803.27,2.79576934]
[1754851151810,0.21664628,803.99,803.33,2.79576934]
[1754851152310,0.21664628,803.99,803.32,2.79576934]
[1754851153009,0.21664628,803.99,803.29,2.79576934]
[1754851153411,0.21664628,803.99,803.16,2.79576934]
[1754851154609,0.21664628,803.99,803.12,2.79576934]
[1754851155709,0.21664628,803.99,802.3,0.21677718]
[1754851155710,0.21664628,803.99,803.26,2.79576934]
[1754851156616,0.21664628,803.99,803.14,2.79576934]
[1754851158723,0.21664628,803.99,803.13,2.79576934]
[1754851159616,0.21664628,803.99,803.14,2.79576934]
[1754851160818,0.21664628,803.99,803.13,2.79576934]
[1754851161213,0.21664628,803.99,803.12,2.79576934]
[1754851161818,0.21664628,803.99,802.83,2.79576934]
[1754851162919,0.21664628,803.99,802.81,2.79576934]
[1754851163418,0.21664628,803.99,802.82,2.79576934]
[1754851165918,0.21664628,803.99,802.87,2.79576934]
[1754851166422,0.21664628,803.99,802.9,2.79576934]
[1754851168123,0.21664628,803.99,802.89,2.79576934]
[1754851168520,0.21664628,803.99,802.86,2.79576934]
[1754851170224,0.21664628,803.99,802.3,0.21677718]
[1754851170225,0.21664628,803.99,802.84,2.79576934]
[1754851170520,0.21664628,803.99,802.85,2.79576934]
[1754851171126,0.21664628,803.99,802.84,2.79576934]
[1754851171723,0.21664628,803.99,802.99,2.79576934]
[1754851172924,0.21664628,803.99,803.03,2.79576934]
[1754851173225,0.21664628,803.99,803.07,2.79576934]
[1754851174328,0.21664628,803.99,803.08,2.79576934]
[1754851174722,0.21664628,803.99,803.17,2.79576934]
[1754851175927,0.21664628,803.99,803.18,2.79576934]
[1754851176429,0.21664628,803.99,803.19,2.79576934]
[1754851177425,0.21664628,803.99,803.2,2.79576934]
[1754851177928,0.21664628,803.99,803.22,2.79576934]
[1754851178423,0.21664628,803.99,803.25,2.79576934]
[1754851178925,0.21664628,803.99,803.26,2.79576934]
[1754851179625,0.21664628,803.99,803.27,2.79576934]
[1754851181030,0.21664628,803.99,803.29,2.79576934]
[1754851181630,0.21664628,803.99,803.37,2.79576934]
[1754851182030,0.21664628,803.99,803.36,2.79576934]
[1754851184931,0.21664628,803.99,802.3,0.21677718]
[1754851184932,0.21664628,803.99,803.41,2.79576934]
[1754851185332,0.21664628,803.99,803.11,3.90341846]
[1754851185932,0.21664628,803.99,802.83,2.79576934]
[1754851186335,0.21664628,803.99,803.02,2.79576934]
[1754851186937,0.21664628,803.99,803.01,2.79576934]
[1754851187437,0.5,804.6,803.01,2.79576934]
[1754851187636,0.21658223,804.08,803.01,2.79576934]
[1754851188034,0.5,804.6,803.01,2.79576934]
[1754851188240,0.21658291,804.08,803.01,2.79576934]
[1754851188436,0.5,804.6,803.01,2.79576934]
[1754851188744,0.21658291,804.08,803.01,2.79576934]
[1754851188937,0.5,804.6,803.01,2.79576934]
[1754851189241,0.21658021,804.1,803.01,2.79576934]
[1754851189441,0.5,804.6,803.01,2.79576934]
[1754851189740,0.21658021,804.1,803.01,2.79576934]
[1754851189941,0.5,804.6,803.0,2.79576934]
[1754851190145,0.82249355,804.59,803.0,2.79576934]
[1754851190346,0.21658021,804.1,803.0,2.79576934]
[1754851190545,0.5,804.6,803.0,2.79576934]
[1754851190742,0.21658156,804.1,803.0,2.79576934]
[1754851191247,0.21658088,804.1,803.0,2.79576934]
[1754851191948,0.21658088,804.1,802.99,2.79576934]
[1754851194044,0.21658088,804.1,803.17,2.79576934]
[1754851194945,0.5,804.6,803.17,2.79576934]
[1754851195147,0.21655595,804.2,803.26,2.79576934]
[1754851195646,0.21655595,804.2,803.47,2.79576934]
[1754851196049,0.21655595,804.2,803.48,2.79576934]
[1754851196751,0.21655595,804.2,803.59,2.79576934]
[1754851197353,0.21655595,804.2,803.57,2.79576934]
[1754851198362,0.21655595,804.2,803.52,2.79576934]
[1754851199856,0.21655595,804.2,803.59,2.79576934]
[1754851201968,0.21655595,804.2,803.58,2.79576934]
[1754851202556,0.21655595,804.2,803.49,2.79576934]
[1754851203160,0.21655595,804.2,803.48,2.79576934]
[1754851203662,0.21655595,804.2,803.47,2.79576934]
[1754851204561,0.21655595,804.2,803.52,2.79576934]
[1754851205058,0.21655595,804.2,803.53,2.79576934]
[1754851205659,0.21655595,804.2,803.45,2.79576934]
[1754851207164,0.21655595,804.2,803.52,2.79576934]
[1754851208159,0.21655595,804.2,803.51,2.79576934]
[1754851208767,0.21655595,804.2,803.52,2.79576934]
[1754851209263,0.21655595,804.2,803.51,2.79576934]
[1754851209765,0.21655595,804.2,803.5,2.79576934]
[1754851210266,0.21655595,804.2,803.52,2.79576934]
[1754851211964,0.21655595,804.2,802.95,2.79576934]
[1754851212363,0.21655595,804.2,803.05,2.79576934]
[1754851212865,0.21655595,804.2,803.02,2.79576934]
[1754851215466,0.21655595,804.2,803.03,2.79576934]
[1754851217770,0.21655595,804.2,803.53,2.79576934]
[1754851218068,0.21655595,804.2,803.52,2.79576934]
[1754851219672,0.21655595,804.2,803.51,2.79576934]
[1754851220271,0.21655595,804.2,803.5,2.79576934]
[1754851220669,0.21655595,804.2,803.46,2.79576934]
[1754851221270,0.21655595,804.2,803.45,2.79576934]
[1754851221768,0.21655595,804.2,803.44,2.79576934]
[1754851222774,0.21655595,804.2,803.37,2.79576934]
[1754851223272,0.21655595,804.2,803.14,3.90341846]
[1754851223273,0.21655595,804.2,803.33,2.79576934]
[1754851224473,0.21655595,804.2,803.34,2.79576934]
[1754851225975,0.21655595,804.2,803.35,2.79576934]
[1754851226975,0.21655595,804.2,803.36,2.79576934]
[1754851228977,0.21655595,804.2,803.35,2.79576934]
[1754851229575,0.21655595,804.2,803.42,2.79576934]
[1754851230578,0.21655595,804.2,803.52,2.79576934]
[1754851231178,0.21655595,804.2,803.24,3.90341846]
[1754851231874,0.21655595,804.2,803.04,2.79576934]
[1754851232179,0.21655595,804.2,803.05,2.79576934]
[1754851233380,0.21655595,804.2,803.55,2.79576934]
[1754851235378,0.21655595,804.2,803.56,2.79576934]
[1754851235781,0.21655595,804.2,803.29,3.90341846]
[1754851235782,0.21655595,804.2,803.45,2.79576934]
[1754851238485,0.21655595,804.2,803.46,2.79576934]
[1754851238987,0.21655595,804.2,803.45,2.79576934]
[1754851239583,0.21655595,804.2,803.44,2.79576934]
[1754851240089,0.21655595,804.2,803.43,2.79576934]
[1754851241089,0.21655595,804.2,803.42,2.79576934]
[1754851242587,0.21655595,804.2,803.41,2.79576934]
[1754851243690,0.21655595,804.2,803.42,2.79576934]
[1754851244188,0.21655595,804.2,803.41,2.79576934]
[1754851244788,0.21655595,804.2,803.39,2.79576934]
[1754851245893,0.21655595,804.2,803.45,2.79576934]
[1754851246292,0.21655595,804.2,803.44,2.79576934]
[1754851246789,0.21655595,804.2,803.39,2.79576934]
[1754851248395,0.21655595,804.2,803.38,2.79576934]
[1754851249892,0.21655595,804.2,803.37,2.79576934]
[1754851250495,0.21655595,804.2,803.36,2.79576934]
[1754851251497,0.21655595,804.2,803.37,2.79576934]
[1754851252005,0.21655595,804.2,803.35,2.79576934]
[1754851252602,0.21655595,804.2,803.36,2.79576934]
[1754851254107,0.21655595,804.2,803.33,2.79576934]
[1754851254605,0.21655595,804.2,803.36,2.79576934]
[1754851255705,0.21655595,804.2,803.37,2.79576934]